Cogmind - Beta 13 @@@ ROGUE MODE // 2024.05.16 @ 23:05:14 Player: Kate+Gabe4evr Result: Destroyed by P-70 Sage with High-powered Shock Rifle Performance ------------- Evolutions (4) 2000 Regions Visited (11) 2200 Robots Destroyed (11) 55 Value Destroyed (272) 272 Prototype IDs (11) 220 Alien Tech Used (0) 0 Bonus (300) 300 TOTAL SCORE: 5047 Bonus ------- Met Data Miner 300 Cogmind --------- Core Integrity 0/850 Matter 223/300 Energy 99/100 System Corruption 10% Temperature Cool (0) Movement Core (50) Location -5/Proximity Caves Parts ------- > --- POWER (2) -------- (None) > --- PROPULSION (7) --- (None) > --- UTILITY (4) ------ (None) > --- WEAPON (2) ------- (None) > --- INVENTORY (5) ---- Advanced ECM Suite Advanced ECM Suite Advanced ECM Suite Advanced ECM Suite Makeshift Hammer Peak State ------------ > --- POWER ------------ Light Angular Momentum Engine Cold Fusion Reactor > --- PROPULSION ------- Flight Unit Flight Unit VTOL Module VTOL Module VTOL Module VTOL Module Xenon Bombardment Thruster > --- UTILITY ---------- Improved Heat Sink Advanced Heat Sink Small Storage Unit Advanced ECM Suite > --- WEAPON ----------- (None) > --- INVENTORY -------- Improved Ion Engine Advanced ECM Suite Advanced ECM Suite Advanced ECM Suite Advanced ECM Suite Light Assault Rifle Shotgun Power Maul [Rating: 40] Favorites ----------- Power Ion Engine Engine Ion Engine Power Core Light Fission Core Reactor Cold Fusion Reactor Propulsion VTOL Module Leg Aluminum Leg Flight Unit VTOL Module Utility Small Storage Unit Device Advanced ECM Suite Storage Small Storage Unit Weapon Assault Rifle Ballistic Gun Assault Rifle Build | -11 -10 -9 -8 -7 -6 -6 -6 -6 -6 -6 -5 ------- Run | Yrd Mat Mat Mat Fac Fac Was Fac Low Low Dat Pro Slots Evolved 8 | . . 2 2 2 2 . . . . . . Power 1 | . . . 1 . . . . . . . . Propulsion 5 | . . 2 1 1 1 . . . . . . Utility 2 | . . . . 1 1 . . . . . . Weapon . | . . . . . . . . . . . . Parts Attached 37 | 6 . 10 3 5 7 . 2 . . . 4 Power 15 | 1 . 2 1 2 4 . 2 . . . 3 Engine 12 | 1 . 2 1 2 3 . 1 . . . 2 Core 2 | . . . . . . . 1 . . . 1 Reactor 1 | . . . . . 1 . . . . . . Propulsion 11 | 2 . 5 1 1 1 . . . . . 1 Treads . | . . . . . . . . . . . . Leg 3 | 2 . 1 . . . . . . . . . Wheel . | . . . . . . . . . . . . Hover . | . . . . . . . . . . . . Flight 8 | . . 4 1 1 1 . . . . . 1 Utility 7 | 1 . 1 1 2 2 . . . . . . Device 6 | . . 1 1 2 2 . . . . . . Storage 1 | 1 . . . . . . . . . . . Processor . | . . . . . . . . . . . . Hackware . | . . . . . . . . . . . . Protection . | . . . . . . . . . . . . Artifact . | . . . . . . . . . . . . Weapon 4 | 2 . 2 . . . . . . . . . Energy Gun . | . . . . . . . . . . . . Energy Cannon . | . . . . . . . . . . . . Ballistic Gun 4 | 2 . 2 . . . . . . . . . Ballistic Cannon . | . . . . . . . . . . . . Launcher . | . . . . . . . . . . . . Special Weapon . | . . . . . . . . . . . . Impact Weapon . | . . . . . . . . . . . . Slashing Weapon . | . . . . . . . . . . . . Piercing Weapon . | . . . . . . . . . . . . Special Melee Weapon . | . . . . . . . . . . . . Unidentified Prototypes 1 | . . . . . 1 . . . . . . Parts Lost 17 | . . 2 . . . . 1 . . . 14 Power 4 | . . 1 . . . . . . . . 3 Propulsion 9 | . . 1 . . . . 1 . . . 7 Utility 4 | . . . . . . . . . . . 4 Weapon . | . . . . . . . . . . . . Highest Loss Streak 9 | . . 2 . . . . 1 . . . 9 To Critical Strikes . | . . . . . . . . . . . . Average Slot Usage (%) 72 | . 85 78 81 86 80 80 79 73 73 73 41 Engine 8 | . 14 10 9 9 8 6 5 6 6 6 2 Leg 8 | . 28 23 . . . . . . . . . Flight 25 | . . 5 45 46 41 46 46 40 40 40 20 Device 12 | . . 6 9 15 19 20 20 20 20 20 12 Storage 8 | . 14 11 9 7 6 6 6 6 6 6 4 Ballistic Gun 8 | . 28 21 9 7 . . . . . . . Naked Turns 30 | . . . . . . . . . . . 30 Heaviest Build 31 | 13 13 19 16 24 31 19 19 19 19 19 19 Greatest Support 30 | 20 20 30 20 24 30 30 30 26 26 26 26 Greatest Overweight (x) 4 | 1 . 4 . . 1 . . . . . 3 Average Overweight (x) . | . . . . . . . . . . . . Largest Inventory Capacity 8 | 8 8 8 8 8 8 8 8 8 8 8 8 Average Capacity 7 | 7 8 8 8 8 8 8 8 8 8 8 7 Most Carried 8 | 1 4 8 8 8 8 8 8 8 6 6 6 Average Carried 5 | . 1 4 7 7 7 8 7 6 6 6 5 Final Capacity 8 | 8 8 8 8 8 8 8 8 8 8 8 5 Final Carried 8 | 1 4 8 8 8 8 8 8 6 6 6 5 Class Distribution -------------------- 47% | Mutant 39% | Sprinter 12% | Scavenger-Sprinter Dominant Class ---------------- Mutant | -10/Materials Mutant | -9/Materials Mutant | -8/Materials Scavenger-Sprinter | -7/Factory Sprinter | -6/Factory Sprinter | -6/Waste Sprinter | -6/Factory Sprinter | -6/Lower Caves Sprinter | -6/Lower Caves Sprinter | -6/Data Miner Mutant | -5/Proximity Caves Resources | -11 -10 -9 -8 -7 -6 -6 -6 -6 -6 -6 -5 ----------- Run | Yrd Mat Mat Mat Fac Fac Was Fac Low Low Dat Pro Matter Collected 600 | 189 139 168 . . . . . 49 21 . 34 Remotely . | . . . . . . . . . . . . Salvage Created 360 | . 146 214 . . . . . . . . . Parts 25 | . 13 12 . . . . . . . . . Haulers Intercepted . | . . . . . . . . . . . . Recyclers Shooed . | . . . . . . . . . . . . Parts Field Recycled . | . . . . . . . . . . . . Retrieved Matter . | . . . . . . . . . . . . Parts Self-Destructed 7 | . . . . . . . . . . . 7 Prevented . | . . . . . . . . . . . . Kills | -11 -10 -9 -8 -7 -6 -6 -6 -6 -6 -6 -5 ------- Run | Yrd Mat Mat Mat Fac Fac Was Fac Low Low Dat Pro Combat Hostiles Destroyed 10 | . 5 5 . . . . . . . . . Guns 10 | . 5 5 . . . . . . . . . Classes Destroyed 4 | . 2 2 . . . . . . . . . Recycler 1 | . 1 . . . . . . . . . . Swarmer 5 | . 5 . . . . . . . . . . Grunt 2 | . . 2 . . . . . . . . . Sentry 3 | . . 3 . . . . . . . . . Best Kill Streak 3 | . 3 3 . . . . . . . . . Combat Bots Only 3 | . 3 3 . . . . . . . . . Max Kills in Single Turn 1 | . 1 1 . . . . . . . . . Gunslinging . | . . . . . . . . . . . . Exploded . | . . . . . . . . . . . . Melee . | . . . . . . . . . . . . Uniques/NPCs Destroyed . | . . . . . . . . . . . . Combat | -11 -10 -9 -8 -7 -6 -6 -6 -6 -6 -6 -5 -------- Run | Yrd Mat Mat Mat Fac Fac Was Fac Low Low Dat Pro Hostile Shots Fired 228 | . 29 27 3 2 16 . 9 5 . . 137 Missed 96 | . 8 8 2 1 7 . 5 3 . . 62 Damage Taken 2062 | . 178 281 13 14 134 . 38 42 . . 1362 Core 935 | . 9 46 13 . 46 . 10 18 . . 793 Absorbed by Shields . | . . . . . . . . . . . . Core Remaining (%) 96 | 100 96 88 97 100 . . . . . . . Volleys Fired 32 | . 17 15 . . . . . . . . . Largest 2 | . 2 2 . . . . . . . . . Hottest 46 | . 40 46 . . . . . . . . . Shots Fired 64 | . 34 30 . . . . . . . . . Gun 64 | . 34 30 . . . . . . . . . Cannon . | . . . . . . . . . . . . Launcher . | . . . . . . . . . . . . Special . | . . . . . . . . . . . . Kinetic 64 | . 34 30 . . . . . . . . . Thermal . | . . . . . . . . . . . . Explosive . | . . . . . . . . . . . . Electromagnetic . | . . . . . . . . . . . . Robot Hit Streak 9 | . 9 8 . . . . . . . . . Robot Miss Streak 3 | . 3 2 . . . . . . . . . Penetration Max . | . . . . . . . . . . . . Secondary Targets 1 | . 1 . . . . . . . . . . Max Gunslinging Chain 1 | . 1 . . . . . . . . . . Shots Hit Robots 43 | . 20 23 . . . . . . . . . Core Hits 18 | . 8 10 . . . . . . . . . Critical Kills . | . . . . . . . . . . . . Critical Parts Destroyed . | . . . . . . . . . . . . Critical Strikes . | . . . . . . . . . . . . Melee Attacks . | . . . . . . . . . . . . Impact . | . . . . . . . . . . . . Slashing . | . . . . . . . . . . . . Piercing . | . . . . . . . . . . . . Sneak Attacks . | . . . . . . . . . . . . Combat Hostiles . | . . . . . . . . . . . . Follow-up Attacks . | . . . . . . . . . . . . Damage Inflicted 552 | . 211 341 . . . . . . . . . Guns 551 | . 210 341 . . . . . . . . . Cannons . | . . . . . . . . . . . . Explosions . | . . . . . . . . . . . . Melee . | . . . . . . . . . . . . Ramming 1 | . 1 . . . . . . . . . . Kinetic 551 | . 210 341 . . . . . . . . . Thermal . | . . . . . . . . . . . . Explosive . | . . . . . . . . . . . . Electromagnetic . | . . . . . . . . . . . . Impact . | . . . . . . . . . . . . Slashing . | . . . . . . . . . . . . Piercing . | . . . . . . . . . . . . Highest Corruption 9 | . . . . . . . . . . . 9 Average Corruption 5 | . . . . . . . . . . . 5 Corruption Purged . | . . . . . . . . . . . . Corruption Blocked . | . . . . . . . . . . . . Effects 5 | . . . . . . . . . . . 5 Message Errors 2 | . . . . . . . . . . . 2 Matter Fused 2 | . . . . . . . . . . . 2 Data Loss (minor) 1 | . . . . . . . . . . . 1 Overload Shots . | . . . . . . . . . . . . Overflow Damage . | . . . . . . . . . . . . Projectiles . | . . . . . . . . . . . . Explosions . | . . . . . . . . . . . . Melee . | . . . . . . . . . . . . Knockbacks . | . . . . . . . . . . . . Impact . | . . . . . . . . . . . . Kinetic . | . . . . . . . . . . . . Secondary . | . . . . . . . . . . . . Self-Inflicted Damage . | . . . . . . . . . . . . Shots . | . . . . . . . . . . . . Rammed . | . . . . . . . . . . . . Targets Rammed 1 | . 1 . . . . . . . . . . Kicked 1 | . 1 . . . . . . . . . . Crushed . | . . . . . . . . . . . . Highest Temperature 10 | . . . . . . . . . . . 10 Average Temperature 5 | . . . . . . . . . . . 5 Received Heat Transfer 243 | . 18 96 . 9 . . 18 18 . . 84 Siege Activations . | . . . . . . . . . . . . Robots Corrupted . | . . . . . . . . . . . . Combat Hostiles . | . . . . . . . . . . . . Parts Fried . | . . . . . . . . . . . . Impact Corruptions . | . . . . . . . . . . . . Robots Melted . | . . . . . . . . . . . . Combat Hostiles . | . . . . . . . . . . . . Parts Melted . | . . . . . . . . . . . . Heat Transferred . | . . . . . . . . . . . . Parts Sabotaged . | . . . . . . . . . . . . Parts Stolen . | . . . . . . . . . . . . Parts Stripped . | . . . . . . . . . . . . Power Chain Reactions . | . . . . . . . . . . . . Alert | -11 -10 -9 -8 -7 -6 -6 -6 -6 -6 -6 -5 ------- Run | Yrd Mat Mat Mat Fac Fac Was Fac Low Low Dat Pro Peak Influence 232 | . 160 232 112 117 86 60 62 . . . . Initial 97 | . . 67 97 57 56 30 42 . . . . Average 81 | . 71 145 106 66 70 51 42 . . . . Maximum Alert Level 1 | . . 1 . . . . . . . . . Low Security (%) 96 | 100 100 87 100 100 100 100 100 . . . . Level 1 3 | . . 12 . . . . . . . . . Level 2 . | . . . . . . . . . . . . Level 3 . | . . . . . . . . . . . . Level 4 . | . . . . . . . . . . . . Level 5 . | . . . . . . . . . . . . High Security . | . . . . . . . . . . . . Max Security . | . . . . . . . . . . . . Squads Dispatched 3 | . 1 . 1 1 . . . . . . . Investigation . | . . . . . . . . . . . . Extermination . | . . . . . . . . . . . . Reinforcement 3 | . 1 . 1 1 . . . . . . . Assault . | . . . . . . . . . . . . Garrison . | . . . . . . . . . . . . Intercept . | . . . . . . . . . . . . Searches Triggered . | . . . . . . . . . . . . Construction Impeded . | . . . . . . . . . . . . Haulers Reinforced . | . . . . . . . . . . . . Active Scanning Responses . | . . . . . . . . . . . . Cargo Convoy Interrupts . | . . . . . . . . . . . . Stealth | -11 -10 -9 -8 -7 -6 -6 -6 -6 -6 -6 -5 --------- Run | Yrd Mat Mat Mat Fac Fac Was Fac Low Low Dat Pro Distress Signals 2 | . . 1 . 1 . . . . . . . Communications Jammed . | . . . . . . . . . . . . Distress Signals . | . . . . . . . . . . . . Times Spotted 60 | . 10 7 4 4 4 5 4 7 . . 15 Peak Tracking Total 10 | . 3 3 1 7 3 5 4 7 . . 10 Tactical Retreats 8 | . 2 . . 1 2 . . . . . 3 Traps | -11 -10 -9 -8 -7 -6 -6 -6 -6 -6 -6 -5 ------- Run | Yrd Mat Mat Mat Fac Fac Was Fac Low Low Dat Pro Traps Triggered 1 | . . . . . 1 . . . . . . Indirectly . | . . . . . . . . . . . . Trap Hack Attempts . | . . . . . . . . . . . . Triggered . | . . . . . . . . . . . . Disarmed . | . . . . . . . . . . . . Reprogrammed . | . . . . . . . . . . . . Reused . | . . . . . . . . . . . . Traps Extracted . | . . . . . . . . . . . . Installed . | . . . . . . . . . . . . Triggered . | . . . . . . . . . . . . Machines | -11 -10 -9 -8 -7 -6 -6 -6 -6 -6 -6 -5 ---------- Run | Yrd Mat Mat Mat Fac Fac Was Fac Low Low Dat Pro Machines Disabled . | . . . . . . . . . . . . Max in Single Turn . | . . . . . . . . . . . . Machines Repaired . | . . . . . . . . . . . . Machines Dismantled . | . . . . . . . . . . . . Machines Sabotaged . | . . . . . . . . . . . . Overloaded Fab Kills . | . . . . . . . . . . . . Hacking | -11 -10 -9 -8 -7 -6 -6 -6 -6 -6 -6 -5 --------- Run | Yrd Mat Mat Mat Fac Fac Was Fac Low Low Dat Pro Machines Accessed 2 | . . . . . . . . . . 2 . Terminals . | . . . . . . . . . . . . Fabricators . | . . . . . . . . . . . . Repair Stations . | . . . . . . . . . . . . Recycling Units . | . . . . . . . . . . . . Scanalyzers . | . . . . . . . . . . . . Garrison Access . | . . . . . . . . . . . . Total Hacks 17 | . . . . . . . . . . 17 . Successful 17 | . . . . . . . . . . 17 . Failed . | . . . . . . . . . . . . Catastrophic . | . . . . . . . . . . . . Database Lockouts . | . . . . . . . . . . . . Manual . | . . . . . . . . . . . . Terminals . | . . . . . . . . . . . . Fabricators . | . . . . . . . . . . . . Repair Stations . | . . . . . . . . . . . . Recycling Units . | . . . . . . . . . . . . Scanalyzers . | . . . . . . . . . . . . Garrison Access . | . . . . . . . . . . . . Terminal Hacks 17 | . . . . . . . . . . 17 . Part Schematic 10 | . . . . . . . . . . 10 . Robot Schematic 4 | . . . . . . . . . . 4 . Prototype ID Bank 3 | . . . . . . . . . . 3 . Fabricator Hacks . | . . . . . . . . . . . . Repair Station Hacks . | . . . . . . . . . . . . Recycling Unit Hacks . | . . . . . . . . . . . . Scanalyzer . | . . . . . . . . . . . . Garrison Access Hacks . | . . . . . . . . . . . . Unauthorized Hacks . | . . . . . . . . . . . . Terminals . | . . . . . . . . . . . . Fabricators . | . . . . . . . . . . . . Repair Stations . | . . . . . . . . . . . . Recycling Units . | . . . . . . . . . . . . Scanalyzers . | . . . . . . . . . . . . Garrison Access . | . . . . . . . . . . . . Data Cores Recovered . | . . . . . . . . . . . . Used . | . . . . . . . . . . . . Hacking Detections . | . . . . . . . . . . . . Full Trace Events . | . . . . . . . . . . . . Feedback Events . | . . . . . . . . . . . . Feedback Blocked . | . . . . . . . . . . . . Robot Schematics Acquired 4 | . . . . . . . . . . 4 . Robots Built . | . . . . . . . . . . . . Authchips . | . . . . . . . . . . . . Time . | . . . . . . . . . . . . Total Robot Build Rating . | . . . . . . . . . . . . Part Schematics Acquired 10 | . . . . . . . . . . 10 . Parts Built . | . . . . . . . . . . . . Authchips . | . . . . . . . . . . . . Time . | . . . . . . . . . . . . Total Part Build Rating . | . . . . . . . . . . . . Parts Repaired . | . . . . . . . . . . . . Time . | . . . . . . . . . . . . Parts Recycled . | . . . . . . . . . . . . Recycled Matter . | . . . . . . . . . . . . Retrieved Matter . | . . . . . . . . . . . . Retrieved Components . | . . . . . . . . . . . . Parts Scanalyzed . | . . . . . . . . . . . . Part Schematics Acquired . | . . . . . . . . . . . . Parts Damaged . | . . . . . . . . . . . . Bothacking | -11 -10 -9 -8 -7 -6 -6 -6 -6 -6 -6 -5 ------------ Run | Yrd Mat Mat Mat Fac Fac Was Fac Low Low Dat Pro Used RIF Installer . | . . . . . . . . . . . . Robots Hacked . | . . . . . . . . . . . . Non-combat . | . . . . . . . . . . . . Combat . | . . . . . . . . . . . . Robot Hacks Applied . | . . . . . . . . . . . . Relay Couplers Released . | . . . . . . . . . . . . Fabnet Peak Effective % . | . . . . . . . . . . . . Robots Rewired . | . . . . . . . . . . . . Allies Hacked . | . . . . . . . . . . . . Hacks Repelled . | . . . . . . . . . . . . Allies | -11 -10 -9 -8 -7 -6 -6 -6 -6 -6 -6 -5 -------- Run | Yrd Mat Mat Mat Fac Fac Was Fac Low Low Dat Pro Total Allies 1 | . . . . . . . . . . . 1 Largest Group 1 | . . . . . . . . . . . 1 Highest-Rated Group 96 | . . . . . . . . . . . 96 Highest-Rated Ally 96 | . . . . . . . . . . . 96 Total Orders . | . . . . . . . . . . . . Ally Attacks 3 | . . . . . . . . . . . 3 Total Damage 115 | . . . . . . . . . . . 115 Kills . | . . . . . . . . . . . . Allies Corrupted 1 | . . . . . . . . . . . 1 Allies Melted . | . . . . . . . . . . . . Intel | -11 -10 -9 -8 -7 -6 -6 -6 -6 -6 -6 -5 ------- Run | Yrd Mat Mat Mat Fac Fac Was Fac Low Low Dat Pro Robot Analysis Total . | . . . . . . . . . . . . Derelict Logs Recovered 4 | . . . . . . . . 2 . . 2 Drone Launches . | . . . . . . . . . . . . Drone Recoveries . | . . . . . . . . . . . . Exploration | -11 -10 -9 -8 -7 -6 -6 -6 -6 -6 -6 -5 ------------- Run | Yrd Mat Mat Mat Fac Fac Was Fac Low Low Dat Pro Turns Passed 1362 | 71 191 243 25 81 218 31 90 73 84 17 238 Spaces Moved 2652 | 53 113 171 88 192 455 118 181 302 371 78 530 Core 116 | 9 . . . . . . . . . . 107 Treads . | . . . . . . . . . . . . Legs 279 | 44 113 122 . . . . . . . . . Wheels . | . . . . . . . . . . . . Hover . | . . . . . . . . . . . . Flight 2257 | . . 49 88 192 455 118 181 302 371 78 423 Fastest Speed 19 | 50 120 26 24 21 19 19 19 21 21 21 21 Average Speed 37 | 115 120 101 24 23 33 19 19 21 21 21 37 Slowest Speed 355 | 190 120 355 24 24 101 19 21 21 21 21 200 Overloaded Moves . | . . . . . . . . . . . . Propulsion Burnouts . | . . . . . . . . . . . . Robots Hopped 19 | . . 3 . 6 2 . 1 2 2 . 3 Cave-ins Triggered . | . . . . . . . . . . . . Exploration Rate (%) 36 | 6 29 26 12 11 11 78 4 48 62 68 87 Regions Visited 11 Branch Regions 4 Pre-discovered Areas 1 | . . . . . . . . . . . 1 Known Exits Taken . | . . . . . . . . . . . . Unknown Exits Taken 9 | 1 1 1 1 1 . . 1 1 1 1 . Scrap Searched 6 | . . . . . . . . 2 2 . 2 Spaces Dug . | . . . . . . . . . . . . Terrain Destroyed . | . . . . . . . . . . . . Melee . | . . . . . . . . . . . . Projectile . | . . . . . . . . . . . . AOE . | . . . . . . . . . . . . Terrain Rammed . | . . . . . . . . . . . . Walls Destroyed . | . . . . . . . . . . . . Machines Disabled . | . . . . . . . . . . . . Actions | -11 -10 -9 -8 -7 -6 -6 -6 -6 -6 -6 -5 --------- Run | Yrd Mat Mat Mat Fac Fac Was Fac Low Low Dat Pro Total 2919 | 60 137 205 91 224 517 125 235 310 374 77 564 Wait 188 | 1 4 9 . 20 52 8 49 7 6 . 32 Move 2606 | 52 112 164 87 181 451 117 178 297 366 77 524 Hop 17 | . . 3 . 4 2 . 1 2 2 . 3 Pick Up 13 | 1 3 . . 7 . . 1 1 . . . Fast Attach 20 | 6 . 6 . . 4 . 2 . . . 2 Attach 12 | . . 2 2 4 2 . . . . . 2 Detach 10 | . . 4 1 2 1 . 1 . . . 1 Swap 5 | . . 2 1 1 1 . . . . . . Drop 15 | . . . . 5 4 . 3 3 . . . Fire 32 | . 17 15 . . . . . . . . . Melee . | . . . . . . . . . . . . Ram . | . . . . . . . . . . . . Kick 1 | . 1 . . . . . . . . . . Crush . | . . . . . . . . . . . . Escape Stasis . | . . . . . . . . . . . . Rewire . | . . . . . . . . . . . . Trap . | . . . . . . . . . . . . Miscellaneous . | . . . . . . . . . . . . Route ------- -11/Scrapyard -10/Materials -9/Materials -8/Materials -7/Factory -6/Factory -6/Waste -6/Factory -6/Lower Caves -6/Lower Caves -6/Data Miner -5/Proximity Caves History --------- Turn | Location | Event 9 | -11/Scrapyard | Discovered new exit (range 16) 72 | -11/Scrapyard | Entered Materials 246 | -10/Materials | Discovered new exit (range 13) 263 | -10/Materials | Entered another Materials area 263 | -9/Materials | Evolved 2 slots: Propulsion x2 311 | -9/Materials | Build established: Mutant 503 | -9/Materials | Discovered new exit (range 12) 506 | -9/Materials | Entered another Materials area 506 | -8/Materials | Evolved 2 slots: Power x1, Propulsion x1 528 | -8/Materials | Discovered new exit (range 16) 531 | -8/Materials | Entered Factory 531 | -7/Factory | Evolved 2 slots: Propulsion x1, Utility x1 609 | -7/Factory | Discovered new exit (range 13) 612 | -7/Factory | Entered another Factory area 612 | -6/Factory | Evolved 2 slots: Propulsion x1, Utility x1 830 | -6/Factory | Sucked down chute 830 | -6/Factory | Entered Waste 832 | -6/Waste | Spotted C-40 Crusher 834 | -6/Waste | Spotted C-40 Crusher 836 | -6/Waste | Spotted C-40 Crusher 843 | -6/Waste | Spotted C-40 Crusher 844 | -6/Waste | Spotted C-40 Crusher 857 | -6/Waste | Spotted C-40 Crusher 858 | -6/Waste | Discovered new exit (range 16) 861 | -6/Waste | Entered Factory 945 | -6/Factory | Discovered new exit (range 6) 951 | -6/Factory | Entered Lower Caves 955 | -6/Lower Caves | Learned Factory terminal intel 966 | -6/Lower Caves | Learned Factory security intel 999 | -6/Lower Caves | Encountered a Warlord checkpoint 1022 | -6/Lower Caves | Attracted the attention of an 0b10 outpost 1022 | -6/Lower Caves | Discovered new exit (range 13) 1024 | -6/Lower Caves | Entered another Lower Caves area 1104 | -6/Lower Caves | Discovered new exit (range 11) 1108 | -6/Lower Caves | Entered Data Miner 1108 | -6/Data Miner | Discovered new exit (range 6) 1112 | -6/Data Miner | Met Data Miner 1117 | -6/Data Miner | Build established: Sprinter 1119 | -6/Data Miner | Received God Mode back door access code from Data Miner 1125 | -6/Data Miner | Entered Proximity Caves 1148 | -5/Proximity Caves | Learned location of Armory (-3) 1152 | -5/Proximity Caves | Learned Factory terminal intel 1212 | -5/Proximity Caves | Spotted B-75 Beast 1247 | -5/Proximity Caves | Lost 5 parts (2p2n1u) 1291 | -5/Proximity Caves | Core integrity fell below 50% 1305 | -5/Proximity Caves | Attracted the attention of an 0b10 checkpoint 1335 | -5/Proximity Caves | Core integrity fell below 20% 1363 | -5/Proximity Caves | Destroyed by P-70 Sage with High-powered Shock Rifle Last Messages --------------- 01259_ Flight Unit destroyed. 01265_ C1YP|36OTS IIB9G2NXR8G 01279_ Adv. ECM Suite destroyed. 01284_ System corrupted: Component data lost. 01287_ VTOL Module destroyed. 01289_ Imp. Ion Engine destroyed. 01292_ S-27 Virus destroyed. 01303_ System corrupted: Matter fused (-10). 01305_ Y-64 Sentinel: "INTERCEPTING UNREGISTERED DERELICT." 01305_ Slug penetrates Wall. 01306_ Xenon Bombardment Thruster destroyed. 01307_ Slug penetrates S-27 Virus. 01307_ S-27 Virus destroyed. 01310_ Slug penetrates Wall. 01311_ VTOL Module fries itself beyond repair. 01313_ Penetrated by Slug. 01314_ Sml. Storage Unit destroyed. 01316_ Slug penetrates Wall. 01333_ Adv. Heat Sink destroyed. 01337_ System corrupted: Matter fused (-9). Map ----- +----------------------------------------------------+ | ### ####### #???????# ##??## ##??# | | # #?????# ?????# #??## #??# | | # ##?????###### ##### #### #??# ### | | ###???????????# ## ##??## ### | | ###?????????????# ##????# ## | | ####????????????# ### ##???### # | | ##??????????? ?? ??# ##???# | | ##????????????? ### ##??# | | ## #????????????? ??## ##?# ### | | ?## # #?????????? ????## ### #### # | | ### ##??????????? ??????## ### #### | | ## ##????????????## ???????## #?# # | | #?# # ##?????????????### ??????## #### # | | #?## #???????????????????????## ##" # | | #??## ##???????????????????????# % # | | #???# ##?##???????????????????# # | | #???## # #????????????????#### | | #???## # #???????????????### # | | #??## ##??????????????## ####### | | ??## # ##?###??????????## ##?### | | ### # ##?## #??????????# ## ###?? | | # # #???# #??????????# ## ##? | | #????# #????#????## p ## ## | | ##????# ##???# ### ### | | #????## ##??# #### | | ##### ##?# @ ### ## ##??# | | ## ### ###### #####?## ####???# | | ?# ##?# ##??## ##??????# ####??????## | | ?###??# ## #########???????###??????????## | | ??????## ### #??????????????????????????## | | ???????## ### #???????????????????????????? | | ????????# ### #???????????????????????????? | | ????????# ## #???????????????????????????? | | ????????## ##???????????????????????????? | | ??????#### ##????????????????????????????? | | ####### ## ##????????????????????????????? | | ## #????????????????????????????? | | ## #????????????????????????????? | | ###### #????????????????????????????? | | ???## #????????????????????????????? | | ### ##????????????????????????????? | | ###?????????????????????????????? | | ##### #???????????????????????????????? | | ## ##???## #?##????????????????????????????? | | ######?????# ## ##???????????????????????????? | | #??????????# #???????????????????????????? | | ##?????????# ##???????????????????????????? | | ###?####### ##????????????????????????????? | | #?# ##????????????????????????????? | | ## !%[ ##???????????????????????????? | +----------------------------------------------------+ Best States ------------- Heat Dissipation 70 Energy Generation 30 Energy Capacity 415 Matter Stores 300 Matter Capacity 300 Sight Range 16 Terrain Scan Density 10 ECM Strength 2 Evasion (%) 66 Item Schematics ----------------- Combat Drone Bay | -6/Data Miner | Free Lgt. Regenerative Plating | -6/Data Miner | Free Cld. Nuclear Pulse Thruster | -6/Data Miner | Free Imp. Matter Compressor | -6/Data Miner | Free Hvy. Proton Cannon | -6/Data Miner | Free Hvy. Siege Treads | -6/Data Miner | Free Adv. Trap Scanner | -6/Data Miner | Free Railgun | -6/Data Miner | Free Adv. Cryofiber Web | -6/Data Miner | Free Impulse Thruster Array | -6/Data Miner | Free Robot Schematics ------------------ G-50 Soldier | -6/Data Miner | Free S-27 Virus | -6/Data Miner | Free A-15 Conveyor | -6/Data Miner | Free X-67 Chaingunner | -6/Data Miner | Free Fabricated ------------ Nothing Alien Tech Used ----------------- None Achievements -------------- None Challenges ------------ None Game ------ Seed IonicBeamCleaver Manual? 0 Play Time 00:24:03 Cumulative 20.1 hours Start 2024.05.16 @ 22:45:06 End 2024.05.16 @ 23:05:14 Sessions 1 Manual Loads 0 Difficulty Rogue Special Mode None Game No. 38 Rogue 38 Adventurer 0 Explorer 0 Win Type - Total 0 Types 0/0/0/0/0/0/0/0/0 Lore% 19 Gallery% 33 Achievement% 29 Wizard Run 0 Options --------- Layout 0 ASCII 0 Keyboard 1 Movement Numpad Keybinds 0 Fullscreen 1 Font 24/X11 Map View 76x50 Zoom Use 0% Tactical HUD 1 Map Filters NONE Filters NONE Steam 1 RUN: 43c7bddb-232c-4942-98c2-9b0cd6df5a9b